[Event "Late-Titled-Tuesday-Blitz-September-12-2023"]
[Site "Chess.com"]
[Date "2023.09.12"]
[Round "2"]
[White "temus_galaktionov"]
[Black "Levanzovsky"]
[Result "1-0"]
[WhiteElo "2825"]
[BlackElo "2477"]
[TimeControl "180+1"]
[EndTime "14:17:49 PDT"]
[Termination "temus_galaktionov won on time"]

1. d4 {[%clk 0:03:00.9]} 1... Nf6 {[%clk 0:02:59.3]} 2. Nf3 {[%clk 0:03:01.5]}
2... c5 {[%clk 0:02:59.1]} 3. c4 {[%clk 0:03:01.9]} 3... cxd4 {[%clk 0:02:59.2]}
4. Nxd4 {[%clk 0:03:02.8]} 4... e5 {[%clk 0:02:57]} 5. Nf3 {[%clk 0:03:02.5]}
5... Nc6 {[%clk 0:02:54.2]} 6. Nc3 {[%clk 0:03:02.4]} 6... Bb4 {[%clk
0:02:52.6]} 7. Bd2 {[%clk 0:03:02.2]} 7... O-O {[%clk 0:02:40.1]} 8. e3 {[%clk
0:03:00.1]} 8... e4 {[%clk 0:02:34]} 9. Ng5 {[%clk 0:02:42.6]} 9... Re8 {[%clk
0:02:33.2]} 10. Qc2 {[%clk 0:02:42]} 10... Qe7 {[%clk 0:02:33]} 11. a3 {[%clk
0:02:41.8]} 11... Ba5 {[%clk 0:02:10.3]} 12. b4 {[%clk 0:02:38.9]} 12... Bc7
{[%clk 0:02:10.6]} 13. h4 {[%clk 0:02:14.8]} 13... h6 {[%clk 0:02:08.9]} 14. Nh3
{[%clk 0:02:14.5]} 14... d5 {[%clk 0:01:32.3]} 15. cxd5 {[%clk 0:02:04.1]} 15...
Ne5 {[%clk 0:01:30.5]} 16. Nf4 {[%clk 0:02:04]} 16... Bf5 {[%clk 0:01:24.8]} 17.
Nb5 {[%clk 0:01:56.5]} 17... Bb6 {[%clk 0:01:16.3]} 18. Be2 {[%clk 0:01:46.4]}
18... Rac8 {[%clk 0:01:15.3]} 19. Qb3 {[%clk 0:01:46.3]} 19... a6 {[%clk
0:01:02.7]} 20. Nc3 {[%clk 0:01:46.3]} 20... Nd3+ {[%clk 0:00:53.2]} 21. Nxd3
{[%clk 0:01:37.8]} 21... exd3 {[%clk 0:00:54.1]} 22. Bf3 {[%clk 0:01:38.2]}
22... Bg4 {[%clk 0:00:47.9]} 23. Qd1 {[%clk 0:01:21.1]} 23... Qd7 {[%clk
0:00:45.1]} 24. Bxg4 {[%clk 0:01:18.1]} 24... Nxg4 {[%clk 0:00:46]} 25. Rc1
{[%clk 0:01:08.7]} 25... h5 {[%clk 0:00:41.9]} 26. Rh3 {[%clk 0:01:08.5]} 26...
Qd6 {[%clk 0:00:34.4]} 27. Kf1 {[%clk 0:01:02.7]} 27... a5 {[%clk 0:00:30]} 28.
Qa4 {[%clk 0:00:48.9]} 28... axb4 {[%clk 0:00:26.4]} 29. axb4 {[%clk 0:00:46.9]}
29... Ra8 {[%clk 0:00:19.3]} 30. Qb5 {[%clk 0:00:46.1]} 30... Qg6 {[%clk
0:00:15.3]} 31. Kg1 {[%clk 0:00:37.3]} 31... Rac8 {[%clk 0:00:11.6]} 32. Rf3
{[%clk 0:00:32.5]} 32... Ne5 {[%clk 0:00:08.5]} 33. Rg3 {[%clk 0:00:30.9]} 33...
Qf6 {[%clk 0:00:07.4]} 34. Ne4 {[%clk 0:00:27]} 34... Rxc1+ {[%clk 0:00:07.3]}
35. Bxc1 {[%clk 0:00:26.8]} 35... Qd8 {[%clk 0:00:06.2]} 36. Bb2 {[%clk
0:00:22.8]} 36... d2 {[%clk 0:00:02.3]} 37. Nxd2 {[%clk 0:00:22.7]} 37... Ng6
{[%clk 0:00:02.2]} 38. Rg5 {[%clk 0:00:20.2]} 38... Bc7 {[%clk 0:00:01.6]} 39.
Nc4 {[%clk 0:00:18.5]} 39... Be5 {[%clk 0:00:01.2]} 40. Nxe5 {[%clk 0:00:17.6]}
40... Nxe5 {[%clk 0:00:02.1]} 41. Rxh5 {[%clk 0:00:17.3]} 41... Ng6 {[%clk
0:00:01.5]} 42. Rg5 {[%clk 0:00:16.8]} 42... Qe7 {[%clk 0:00:01.8]} 43. Rg4
{[%clk 0:00:14.6]} 1-0

[Event "Late-Titled-Tuesday-Blitz-September-12-2023"]
[Site "Chess.com"]
[Date "2023.09.12"]
[Round "2"]
[White "Maxfan2008"]
[Black "queen_iryna"]
[Result "1-0"]
[WhiteElo "2584"]
[BlackElo "2349"]
[TimeControl "180+1"]
[EndTime "14:17:49 PDT"]
[Termination "Maxfan2008 won by checkmate"]

1. d4 {[%clk 0:03:00.9]} 1... d6 {[%clk 0:03:00.9]} 2. c4 {[%clk 0:03:00.7]}
2... e5 {[%clk 0:03:00.6]} 3. Nc3 {[%clk 0:03:01.6]} 3... exd4 {[%clk
0:02:59.8]} 4. Qxd4 {[%clk 0:03:02.5]} 4... Nc6 {[%clk 0:03:00.2]} 5. Qd1 {[%clk
0:02:58.9]} 5... Nf6 {[%clk 0:03:00]} 6. Nf3 {[%clk 0:02:58.7]} 6... g6 {[%clk
0:02:53.5]} 7. g3 {[%clk 0:02:56.3]} 7... Bg7 {[%clk 0:02:53]} 8. Bg2 {[%clk
0:02:56.2]} 8... O-O {[%clk 0:02:53.5]} 9. O-O {[%clk 0:02:56.2]} 9... Be6
{[%clk 0:02:52]} 10. Nd5 {[%clk 0:02:54.4]} 10... Re8 {[%clk 0:02:41.3]} 11. Bg5
{[%clk 0:02:51.4]} 11... Bxd5 {[%clk 0:02:35.4]} 12. cxd5 {[%clk 0:02:49.4]}
12... Ne5 {[%clk 0:02:34.1]} 13. Nxe5 {[%clk 0:02:47.5]} 13... Rxe5 {[%clk
0:02:35]} 14. f4 {[%clk 0:02:47.5]} 14... Re7 {[%clk 0:02:24.5]} 15. f5 {[%clk
0:02:39.3]} 15... Re5 {[%clk 0:02:24.5]} 16. e4 {[%clk 0:02:24.7]} 16... h6
{[%clk 0:02:14.1]} 17. Bf4 {[%clk 0:02:24.1]} 17... Re8 {[%clk 0:02:13.3]} 18.
fxg6 {[%clk 0:02:24]} 18... fxg6 {[%clk 0:02:13.1]} 19. Be3 {[%clk 0:02:11.6]}
19... Nxe4 {[%clk 0:02:08]} 20. Qg4 {[%clk 0:02:10]} 20... Nf6 {[%clk
0:02:03.5]} 21. Qf3 {[%clk 0:01:55.2]} 21... Rf8 {[%clk 0:02:01.5]} 22. Bd4
{[%clk 0:01:52.3]} 22... Nd7 {[%clk 0:01:53.1]} 23. Qg4 {[%clk 0:01:49.1]} 23...
Bxd4+ {[%clk 0:01:48.8]} 24. Qxd4 {[%clk 0:01:48.4]} 24... Ne5 {[%clk
0:01:49.6]} 25. Rxf8+ {[%clk 0:01:39.1]} 25... Qxf8 {[%clk 0:01:50.5]} 26. Rf1
{[%clk 0:01:39]} 26... Qg7 {[%clk 0:01:50.8]} 27. Qb4 {[%clk 0:01:32.5]} 27...
b6 {[%clk 0:01:50.8]} 28. Bh3 {[%clk 0:01:30.8]} 28... Rf8 {[%clk 0:01:46.7]}
29. Be6+ {[%clk 0:01:30.9]} 29... Kh7 {[%clk 0:01:46.1]} 30. Qc3 {[%clk
0:01:29.2]} 30... Rxf1+ {[%clk 0:01:42.1]} 31. Kxf1 {[%clk 0:01:30.1]} 31...
Qf6+ {[%clk 0:01:42.4]} 32. Kg2 {[%clk 0:01:30.2]} 32... Qe7 {[%clk 0:01:32.3]}
33. h4 {[%clk 0:01:28.7]} 33... h5 {[%clk 0:01:26.7]} 34. b4 {[%clk 0:01:24.4]}
34... c5 {[%clk 0:01:25.3]} 35. bxc5 {[%clk 0:01:05.7]} 35... bxc5 {[%clk
0:01:26.2]} 36. Qa5 {[%clk 0:01:03.7]} 36... Qf8 {[%clk 0:01:19]} 37. Qxa7+
{[%clk 0:01:01.1]} 37... Kh6 {[%clk 0:01:19]} 38. Qa3 {[%clk 0:00:59]} 38... c4
{[%clk 0:01:12.1]} 39. Qe3+ {[%clk 0:00:58.1]} 39... Kh7 {[%clk 0:01:10.9]} 40.
a4 {[%clk 0:00:58.4]} 40... Qb8 {[%clk 0:01:08]} 41. Qg5 {[%clk 0:00:24.9]}
41... Qb7 {[%clk 0:00:54.5]} 42. a5 {[%clk 0:00:23.2]} 42... c3 {[%clk
0:00:28.3]} 43. a6 {[%clk 0:00:22]} 43... Qa7 {[%clk 0:00:28.2]} 44. Qd8 {[%clk
0:00:18.3]} 44... Nf7 {[%clk 0:00:20.9]} 45. Qf8 {[%clk 0:00:17.2]} 45... c2
{[%clk 0:00:19.7]} 46. Bxf7 {[%clk 0:00:16.9]} 46... c1=Q {[%clk 0:00:17.3]} 47.
Qg8+ {[%clk 0:00:16.7]} 47... Kh6 {[%clk 0:00:15]} 48. Qxg6# {[%clk 0:00:17.6]}
1-0

[Event "Late-Titled-Tuesday-Blitz-September-12-2023"]
[Site "Chess.com"]
[Date "2023.09.12"]
[Round "2"]
[White "SilverCityIndigo"]
[Black "malakismayil"]
[Result "0-1"]
[WhiteElo "2269"]
[BlackElo "2505"]
[TimeControl "180+1"]
[EndTime "14:17:49 PDT"]
[Termination "malakismayil won by checkmate"]

1. d4 {[%clk 0:02:55]} 1... Nf6 {[%clk 0:02:57.4]} 2. c4 {[%clk 0:02:55.5]} 2...
e6 {[%clk 0:02:57.3]} 3. Nf3 {[%clk 0:02:55.7]} 3... d5 {[%clk 0:02:57.9]} 4.
Nc3 {[%clk 0:02:54.5]} 4... Be7 {[%clk 0:02:55.8]} 5. cxd5 {[%clk 0:02:54.6]}
5... exd5 {[%clk 0:02:55.8]} 6. Bf4 {[%clk 0:02:54.4]} 6... O-O {[%clk
0:02:56.3]} 7. e3 {[%clk 0:02:54.2]} 7... c6 {[%clk 0:02:56.7]} 8. Bd3 {[%clk
0:02:54.4]} 8... Bg4 {[%clk 0:02:56]} 9. Qc2 {[%clk 0:02:48.9]} 9... Nbd7 {[%clk
0:02:55.2]} 10. Ne5 {[%clk 0:02:49]} 10... Bh5 {[%clk 0:02:53.4]} 11. g4 {[%clk
0:02:38.6]} 11... Bg6 {[%clk 0:02:53.3]} 12. h4 {[%clk 0:02:35.7]} 12... Bxd3
{[%clk 0:02:51.6]} 13. Qxd3 {[%clk 0:02:33.2]} 13... Bb4 {[%clk 0:02:36.6]} 14.
h5 {[%clk 0:02:25]} 14... Ne4 {[%clk 0:02:24.8]} 15. f3 {[%clk 0:02:20.4]} 15...
Nd6 {[%clk 0:02:13.7]} 16. h6 {[%clk 0:01:58.7]} 16... g6 {[%clk 0:02:11.4]} 17.
g5 {[%clk 0:01:45.8]} 17... Nb5 {[%clk 0:01:52.7]} 18. Kf2 {[%clk 0:01:35.8]}
18... Nxe5 {[%clk 0:01:47.3]} 19. Bxe5 {[%clk 0:01:03.8]} 19... Nxc3 {[%clk
0:01:42.5]} 20. bxc3 {[%clk 0:01:03.5]} 20... Bd6 {[%clk 0:01:43.2]} 21. f4
{[%clk 0:01:01.2]} 21... Bxe5 {[%clk 0:01:36.8]} 22. dxe5 {[%clk 0:01:02.1]}
22... Qd7 {[%clk 0:01:30.4]} 23. Kg3 {[%clk 0:01:00.6]} 23... Rad8 {[%clk
0:01:27.6]} 24. Rab1 {[%clk 0:01:00.2]} 24... b5 {[%clk 0:01:25.7]} 25. Qd4
{[%clk 0:00:43.1]} 25... a6 {[%clk 0:01:22.6]} 26. a4 {[%clk 0:00:41.2]} 26...
Rc8 {[%clk 0:01:14.3]} 27. Rhd1 {[%clk 0:00:32.8]} 27... Qe7 {[%clk 0:01:08]}
28. axb5 {[%clk 0:00:23.1]} 28... axb5 {[%clk 0:01:08.9]} 29. Qb4 {[%clk
0:00:23.1]} 29... Qe6 {[%clk 0:00:59.7]} 30. e4 {[%clk 0:00:20.3]} 30... dxe4
{[%clk 0:00:57.4]} 31. Qxe4 {[%clk 0:00:21.2]} 31... Rfd8 {[%clk 0:00:57.3]} 32.
Ra1 {[%clk 0:00:13.1]} 32... Rd5 {[%clk 0:00:39.5]} 33. Rxd5 {[%clk 0:00:09.8]}
33... cxd5 {[%clk 0:00:40.4]} 34. Qd4 {[%clk 0:00:09.1]} 34... Rb8 {[%clk
0:00:31.8]} 35. Ra7 {[%clk 0:00:08.9]} 35... Rd8 {[%clk 0:00:25.1]} 36. Rb7
{[%clk 0:00:08.4]} 36... Kf8 {[%clk 0:00:14.7]} 37. Qc5+ {[%clk 0:00:08.3]}
37... Kg8 {[%clk 0:00:13.8]} 38. Qd4 {[%clk 0:00:09]} 38... Kf8 {[%clk
0:00:13.4]} 39. Rxb5 {[%clk 0:00:09.1]} 39... Qc6 {[%clk 0:00:09.8]} 40. Qb4+
{[%clk 0:00:08.9]} 40... Kg8 {[%clk 0:00:08.4]} 41. Rc5 {[%clk 0:00:09.2]} 41...
Qa6 {[%clk 0:00:05.4]} 42. Qd4 {[%clk 0:00:09.3]} 42... Qa2 {[%clk 0:00:02.7]}
43. Qxd5 {[%clk 0:00:08.9]} 43... Qxd5 {[%clk 0:00:01.4]} 44. Rc8 {[%clk
0:00:09.1]} 44... Rxc8 {[%clk 0:00:01.1]} 45. f5 {[%clk 0:00:10]} 45... Rxc3+
{[%clk 0:00:01.6]} 46. Kf4 {[%clk 0:00:10]} 46... Qd4# {[%clk 0:00:02.3]} 0-1

[Event "Late-Titled-Tuesday-Blitz-September-12-2023"]
[Site "Chess.com"]
[Date "2023.09.12"]
[Round "2"]
[White "jcmesafischer"]
[Black "hellokostya"]
[Result "1-0"]
[WhiteElo "2375"]
[BlackElo "2591"]
[TimeControl "180+1"]
[EndTime "14:17:50 PDT"]
[Termination "jcmesafischer won by resignation"]

1. Nf3 {[%clk 0:02:56.5]} 1... Nf6 {[%clk 0:02:59.9]} 2. g3 {[%clk 0:02:50.3]}
2... g6 {[%clk 0:03:00.3]} 3. Bg2 {[%clk 0:02:50.1]} 3... Bg7 {[%clk 0:03:01]}
4. O-O {[%clk 0:02:50.2]} 4... O-O {[%clk 0:03:01.8]} 5. d4 {[%clk 0:02:49.8]}
5... d6 {[%clk 0:03:02.5]} 6. c4 {[%clk 0:02:49.5]} 6... Nc6 {[%clk 0:03:01.4]}
7. d5 {[%clk 0:02:48.7]} 7... Na5 {[%clk 0:03:00.5]} 8. Qa4 {[%clk 0:02:41.2]}
8... c5 {[%clk 0:02:59.2]} 9. Nc3 {[%clk 0:02:15.4]} 9... Bd7 {[%clk 0:02:54.2]}
10. Qc2 {[%clk 0:02:01.6]} 10... Nxc4 {[%clk 0:02:53]} 11. e4 {[%clk 0:02:00.2]}
11... b5 {[%clk 0:02:46.9]} 12. Re1 {[%clk 0:01:56.4]} 12... b4 {[%clk
0:02:42.2]} 13. Na4 {[%clk 0:01:55]} 13... Nb6 {[%clk 0:02:40.5]} 14. Nxb6
{[%clk 0:01:52.7]} 14... axb6 {[%clk 0:02:40]} 15. Bg5 {[%clk 0:01:42.9]} 15...
h6 {[%clk 0:02:39.4]} 16. Bf4 {[%clk 0:01:42.4]} 16... Bg4 {[%clk 0:02:31.6]}
17. Nd2 {[%clk 0:01:38.4]} 17... b5 {[%clk 0:02:24.8]} 18. h3 {[%clk 0:01:37.4]}
18... Bd7 {[%clk 0:02:24.4]} 19. e5 {[%clk 0:01:29.5]} 19... Bf5 {[%clk
0:02:19.4]} 20. Qc1 {[%clk 0:01:13.4]} 20... Nh5 {[%clk 0:02:19.3]} 21. exd6
{[%clk 0:01:04.9]} 21... exd6 {[%clk 0:02:14.7]} 22. Be3 {[%clk 0:01:04.6]}
22... Nf6 {[%clk 0:01:56.7]} 23. g4 {[%clk 0:00:57.8]} 23... Bd3 {[%clk
0:01:51.6]} 24. Nf3 {[%clk 0:00:48.3]} 24... Bc4 {[%clk 0:01:42.2]} 25. Bf4
{[%clk 0:00:43.9]} 25... g5 {[%clk 0:01:38.4]} 26. Bg3 {[%clk 0:00:35.5]} 26...
Bxd5 {[%clk 0:01:28.1]} 27. Rd1 {[%clk 0:00:34.3]} 27... Qb6 {[%clk 0:01:03]}
28. Qc2 {[%clk 0:00:28.6]} 28... Rfd8 {[%clk 0:00:59.9]} 29. Rxd5 {[%clk
0:00:20.6]} 29... Nxd5 {[%clk 0:00:59.6]} 30. Nxg5 {[%clk 0:00:17.8]} 30... Nf6
{[%clk 0:00:57.1]} 31. Bxa8 {[%clk 0:00:15.6]} 31... Rxa8 {[%clk 0:00:55.9]} 32.
Nf3 {[%clk 0:00:16.3]} 32... Qc6 {[%clk 0:00:55.4]} 33. Nh4 {[%clk 0:00:16.5]}
33... Qe4 {[%clk 0:00:54.1]} 34. Qd2 {[%clk 0:00:14.1]} 34... Qd5 {[%clk
0:00:51.2]} 35. Qe2 {[%clk 0:00:10.7]} 35... h5 {[%clk 0:00:39.7]} 36. Nf5
{[%clk 0:00:10.3]} 36... hxg4 {[%clk 0:00:39.8]} 37. Ne7+ {[%clk 0:00:10.3]}
37... Kf8 {[%clk 0:00:33.9]} 38. Nxd5 {[%clk 0:00:10.5]} 38... Nxd5 {[%clk
0:00:34.8]} 39. Bxd6+ {[%clk 0:00:10.7]} 39... Kg8 {[%clk 0:00:34.4]} 40. Qxg4
{[%clk 0:00:10.5]} 40... Nf6 {[%clk 0:00:32.3]} 41. Qg2 {[%clk 0:00:07.4]} 41...
Rc8 {[%clk 0:00:31.6]} 42. Be5 {[%clk 0:00:07.4]} 42... Kf8 {[%clk 0:00:30.6]}
43. Rc1 {[%clk 0:00:05.7]} 43... c4 {[%clk 0:00:30.1]} 44. Bd6+ {[%clk
0:00:06.2]} 44... Kg8 {[%clk 0:00:30]} 45. Bxb4 {[%clk 0:00:06.2]} 45... Kh7
{[%clk 0:00:30]} 46. Bc3 {[%clk 0:00:06.5]} 46... Bh6 {[%clk 0:00:28.5]} 47. Rd1
{[%clk 0:00:06.6]} 47... Nh5 {[%clk 0:00:15.9]} 48. Qe4+ {[%clk 0:00:05.8]}
48... Kg8 {[%clk 0:00:14.7]} 49. Qg4+ {[%clk 0:00:06.4]} 49... Kh7 {[%clk
0:00:13.2]} 50. Qf5+ {[%clk 0:00:07]} 50... Kg8 {[%clk 0:00:12.9]} 51. Qxc8+
{[%clk 0:00:07.7]} 1-0

[Event "Late-Titled-Tuesday-Blitz-September-12-2023"]
[Site "Chess.com"]
[Date "2023.09.12"]
[Round "2"]
[White "Arystanner"]
[Black "Flaccidmoves"]
[Result "1-0"]
[WhiteElo "2822"]
[BlackElo "2462"]
[TimeControl "180+1"]
[EndTime "14:17:51 PDT"]
[Termination "Arystanner won by resignation"]

1. d4 {[%clk 0:02:58.1]} 1... g6 {[%clk 0:02:58.4]} 2. c4 {[%clk 0:02:58.7]}
2... Bg7 {[%clk 0:02:58.8]} 3. Nc3 {[%clk 0:02:59.4]} 3... Nf6 {[%clk
0:02:59.3]} 4. e4 {[%clk 0:02:59.4]} 4... O-O {[%clk 0:02:59.8]} 5. Be2 {[%clk
0:02:59.8]} 5... d6 {[%clk 0:02:58.5]} 6. Be3 {[%clk 0:03:00.1]} 6... c5 {[%clk
0:02:56.9]} 7. dxc5 {[%clk 0:02:58.8]} 7... dxc5 {[%clk 0:02:56.1]} 8. Qxd8
{[%clk 0:02:55.6]} 8... Rxd8 {[%clk 0:02:55.9]} 9. Bxc5 {[%clk 0:02:56.1]} 9...
Na6 {[%clk 0:02:39.3]} 10. Bxe7 {[%clk 0:02:48.1]} 10... Re8 {[%clk 0:02:36.6]}
11. Ba3 {[%clk 0:02:40.3]} 11... Nxe4 {[%clk 0:02:35.6]} 12. Nxe4 {[%clk
0:02:40.6]} 12... Rxe4 {[%clk 0:02:36.5]} 13. O-O-O {[%clk 0:02:39.7]} 13... Bf5
{[%clk 0:02:26.1]} 14. Bd3 {[%clk 0:02:39.6]} 14... Bh6+ {[%clk 0:02:25.1]} 15.
Kb1 {[%clk 0:02:36.6]} 15... Rxc4 {[%clk 0:02:24]} 16. Bxf5 {[%clk 0:02:36.8]}
16... gxf5 {[%clk 0:02:24.9]} 17. Ne2 {[%clk 0:02:32.5]} 17... Re8 {[%clk
0:02:02.3]} 18. Ng3 {[%clk 0:02:32.4]} 18... f4 {[%clk 0:01:57.3]} 19. Nf5
{[%clk 0:02:32.5]} 19... Bf8 {[%clk 0:01:45.7]} 20. Bxf8 {[%clk 0:02:26.6]}
20... Rxf8 {[%clk 0:01:46.6]} 21. Rd7 {[%clk 0:02:07.9]} 21... Rc7 {[%clk
0:01:35.4]} 22. Rhd1 {[%clk 0:02:04.3]} 22... Rxd7 {[%clk 0:01:24]} 23. Rxd7
{[%clk 0:02:05.2]} 23... Nc5 {[%clk 0:01:24.4]} 24. Rc7 {[%clk 0:02:00.9]} 24...
b6 {[%clk 0:01:20]} 25. Rxa7 {[%clk 0:01:59.5]} 25... Re8 {[%clk 0:01:16.2]} 26.
b4 {[%clk 0:01:40.5]} 26... Nd3 {[%clk 0:01:11.1]} 27. b5 {[%clk 0:01:41]} 27...
f6 {[%clk 0:01:02]} 28. a4 {[%clk 0:01:27.5]} 28... Re2 {[%clk 0:00:53.4]} 29.
Rd7 {[%clk 0:01:10.2]} 29... Nc5 {[%clk 0:00:48.5]} 30. Rg7+ {[%clk 0:01:03.5]}
30... Kf8 {[%clk 0:00:47.5]} 31. Rxh7 {[%clk 0:01:03.9]} 31... Rxf2 {[%clk
0:00:41.8]} 32. a5 {[%clk 0:00:55.9]} 32... bxa5 {[%clk 0:00:37.9]} 33. b6
{[%clk 0:00:51.4]} 33... Rxg2 {[%clk 0:00:33.5]} 34. Rc7 {[%clk 0:00:49.7]}
34... Na6 {[%clk 0:00:33.1]} 35. Ra7 {[%clk 0:00:44.4]} 35... Nc5 {[%clk
0:00:32.7]} 36. Rxa5 {[%clk 0:00:38.3]} 36... Nb7 {[%clk 0:00:28.9]} 37. Ra7
{[%clk 0:00:30.3]} 37... Nc5 {[%clk 0:00:27.1]} 38. Nd4 {[%clk 0:00:22.1]} 38...
Rxh2 {[%clk 0:00:20.4]} 39. Ne6+ {[%clk 0:00:18.1]} 39... Nxe6 {[%clk
0:00:08.6]} 40. b7 {[%clk 0:00:18.3]} 40... Rh1+ {[%clk 0:00:09.2]} 41. Ka2
{[%clk 0:00:17.7]} 41... Rh2+ {[%clk 0:00:09.5]} 42. Ka3 {[%clk 0:00:17.4]}
42... Rh3+ {[%clk 0:00:09.8]} 43. Kb4 {[%clk 0:00:17.1]} 1-0

[Event "Late-Titled-Tuesday-Blitz-September-12-2023"]
[Site "Chess.com"]
[Date "2023.09.12"]
[Round "2"]
[White "checkmatequen"]
[Black "enestnrvrd"]
[Result "0-1"]
[WhiteElo "2363"]
[BlackElo "2729"]
[TimeControl "180+1"]
[EndTime "14:17:56 PDT"]
[Termination "enestnrvrd won on time"]

1. e4 {[%clk 0:03:00.9]} 1... c5 {[%clk 0:02:59.7]} 2. Nf3 {[%clk 0:02:59.2]}
2... d6 {[%clk 0:02:59.7]} 3. d4 {[%clk 0:02:58.8]} 3... cxd4 {[%clk 0:03:00.6]}
4. Nxd4 {[%clk 0:02:59.4]} 4... Nf6 {[%clk 0:03:01.3]} 5. Nc3 {[%clk 0:02:59.7]}
5... a6 {[%clk 0:03:01.8]} 6. Bg5 {[%clk 0:02:53.6]} 6... e6 {[%clk 0:03:00.1]}
7. f4 {[%clk 0:02:52.8]} 7... h6 {[%clk 0:02:58.3]} 8. Bh4 {[%clk 0:02:52.1]}
8... Nbd7 {[%clk 0:02:57.7]} 9. Bc4 {[%clk 0:02:49.6]} 9... b5 {[%clk
0:02:48.2]} 10. Bb3 {[%clk 0:02:46.3]} 10... Qb6 {[%clk 0:02:43.6]} 11. a3
{[%clk 0:02:39.8]} 11... Be7 {[%clk 0:02:39.8]} 12. Bf2 {[%clk 0:02:33]} 12...
Nc5 {[%clk 0:02:33.8]} 13. Qe2 {[%clk 0:02:22.7]} 13... Qc7 {[%clk 0:02:24.3]}
14. O-O-O {[%clk 0:02:21.3]} 14... Bb7 {[%clk 0:02:18.9]} 15. Rhe1 {[%clk
0:02:20.5]} 15... Nxb3+ {[%clk 0:01:58.8]} 16. Nxb3 {[%clk 0:02:15.2]} 16... O-O
{[%clk 0:01:51.7]} 17. g4 {[%clk 0:02:13.4]} 17... Nd7 {[%clk 0:01:46]} 18. h4
{[%clk 0:02:08.9]} 18... Bf6 {[%clk 0:01:09]} 19. Bd4 {[%clk 0:02:04.8]} 19...
Bxd4 {[%clk 0:01:06]} 20. Rxd4 {[%clk 0:02:05.7]} 20... e5 {[%clk 0:01:04.1]}
21. Rd2 {[%clk 0:01:56.5]} 21... exf4 {[%clk 0:01:03.7]} 22. Qd3 {[%clk
0:01:51]} 22... Ne5 {[%clk 0:01:00.8]} 23. Qxd6 {[%clk 0:01:50.8]} 23... Qxd6
{[%clk 0:01:01.7]} 24. Rxd6 {[%clk 0:01:51.3]} 24... Nxg4 {[%clk 0:01:01.4]} 25.
Nc5 {[%clk 0:01:45.6]} 25... Bc8 {[%clk 0:00:49.3]} 26. Nd5 {[%clk 0:01:45.2]}
26... f3 {[%clk 0:00:43.6]} 27. Rf1 {[%clk 0:01:38.5]} 27... Ne5 {[%clk
0:00:39.3]} 28. Nd3 {[%clk 0:01:12.9]} 28... Nxd3+ {[%clk 0:00:32.8]} 29. cxd3
{[%clk 0:01:13.8]} 29... Bg4 {[%clk 0:00:32.9]} 30. Ne3 {[%clk 0:01:12.9]} 30...
h5 {[%clk 0:00:31.4]} 31. Kd2 {[%clk 0:01:03.9]} 31... Rfd8 {[%clk 0:00:30.7]}
32. Rd5 {[%clk 0:00:59.1]} 32... Rxd5 {[%clk 0:00:28.6]} 33. Nxd5 {[%clk
0:01:00]} 33... f6 {[%clk 0:00:26.9]} 34. Ke3 {[%clk 0:00:58.2]} 34... Kf7
{[%clk 0:00:26.7]} 35. Rc1 {[%clk 0:00:58.1]} 35... Rc8 {[%clk 0:00:18.8]} 36.
Rxc8 {[%clk 0:00:58.3]} 36... Bxc8 {[%clk 0:00:19.5]} 37. Kxf3 {[%clk
0:00:58.8]} 37... g5 {[%clk 0:00:20.2]} 38. hxg5 {[%clk 0:00:57.7]} 38... fxg5
{[%clk 0:00:20.9]} 39. Ne3 {[%clk 0:00:56.2]} 39... Ke6 {[%clk 0:00:20.6]} 40.
d4 {[%clk 0:00:54.4]} 40... Kd6 {[%clk 0:00:20.4]} 41. e5+ {[%clk 0:00:53.2]}
41... Ke6 {[%clk 0:00:19.9]} 42. Ke4 {[%clk 0:00:51.9]} 42... h4 {[%clk
0:00:18.4]} 43. d5+ {[%clk 0:00:51.6]} 43... Ke7 {[%clk 0:00:19.1]} 44. Nf1
{[%clk 0:00:48.6]} 44... Bh3 {[%clk 0:00:17.6]} 45. Nd2 {[%clk 0:00:33.7]} 45...
Bg2+ {[%clk 0:00:17.1]} 46. Ke3 {[%clk 0:00:16.4]} 46... Bxd5 {[%clk 0:00:16.1]}
47. Kd4 {[%clk 0:00:09.8]} 47... Ke6 {[%clk 0:00:16.2]} 48. Nf1 {[%clk
0:00:08.5]} 48... g4 {[%clk 0:00:15]} 49. Nh2 {[%clk 0:00:01.8]} 49... g3 {[%clk
0:00:14.9]} 0-1